fUSD/lending_fUSD_20260108
["ID","MTS","AMOUNT","RATE_DAILY","PERIOD"]
[401072970,1767904245842,-1000.0,0.00017578,2]
[401072971,1767904245851,-1000.0,0.00017588,2]
[401072972,1767904245860,-1000.0,0.00017591,2]
[401072973,1767904245869,-1000.0,0.00017597,2]
[401072974,1767904245878,-1411.0,0.00017611,2]
[401072975,1767904245887,-1000.0,0.00017616,2]
[401072977,1767904245896,-1000.0,0.00017619,2]
[401072979,1767904245905,-1000.0,0.00017621,2]
[401072981,1767904245915,-15030.58394086,0.0001764,2]
[401072982,1767904245924,-151.0,0.0001764,2]
[401072983,1767904245933,-1000.0,0.00017647,2]
[401072985,1767904245942,-311.1,0.00017647,2]
[401072987,1767904245951,-574.12855637,0.00017647,2]
[401072988,1767904245960,-293.26916709,0.00017647,2]
[401072990,1767904245970,-151.0,0.00017647,2]
[401072992,1767904245979,-151.0,0.00017647,2]
[401072993,1767904245988,-1000.0,0.00017674,2]
[401072994,1767904245997,-4382.0962424,0.00017678,2]
[401072995,1767904246006,-162.0,0.0001768,2]
[401072996,1767904246014,-162.0,0.0001768,2]
[401072997,1767904246023,-833.0,0.0001768,2]
[401072998,1767904246033,-162.0,0.0001768,2]
[401072999,1767904246042,-833.0,0.0001768,2]
[401073000,1767904246051,-833.0,0.0001768,2]
[401073001,1767904246060,-162.0,0.0001768,2]
[401073003,1767904246069,-162.0,0.0001768,2]
[401073005,1767904246078,-162.0,0.0001768,2]
[401073006,1767904246087,-162.0,0.0001768,2]
[401073008,1767904246096,-833.0,0.0001768,2]
[401073010,1767904246105,-1000.0,0.0001768,2]
[401073011,1767904246114,-1000.0,0.00017686,2]
[401073012,1767904246124,-4280.56502844,0.000177,2]
[401073013,1767904246133,-628.5623616,0.000177,2]
[401073014,1767904246142,-1000.0,0.000177,2]
[401073015,1767904246152,-1000.0,0.00017705,2]
[401073016,1767904246161,-1000.0,0.00017709,2]
[401073017,1767904246170,-1000.0,0.00017712,2]
[401073018,1767904246180,-1000.0,0.00017717,2]
[401073019,1767904246189,-25000.0,0.00017724,3]
[401073020,1767904246423,-1000.0,0.00017728,2]
[401073021,1767904246435,-1000.0,0.00017731,2]
[401073023,1767904246445,-1000.0,0.00017732,2]
[401073024,1767904246454,-25000.0,0.00017733,3]
[401073025,1767904246463,-568.35,0.00017741,2]
[401073026,1767904246472,-25000.0,0.00017742,3]
[401073027,1767904246481,-257.0,0.00017748,2]
[401073028,1767904246490,-819.99,0.0001775,2]
[401073029,1767904246500,-500.0,0.0001775,2]
[401073030,1767904246510,-25000.0,0.0001775,3]
[401073031,1767904246519,-927.0,0.00017751,2]
[401073032,1767904246528,-25000.0,0.00017759,3]
[401073033,1767904246537,-25000.0,0.00017768,3]
[401073034,1767904246547,-160.53,0.00017775,2]
[401073035,1767904246556,-25000.0,0.00017777,3]
[401073036,1767904246566,-1000.0,0.0001778,2]
[401073037,1767904246577,-25000.0,0.00017786,3]
[401073038,1767904246586,-1000.0,0.00017791,2]
[401073039,1767904246596,-25000.0,0.00017794,3]
[401073040,1767904246606,-1000.0,0.00017799,2]
[401073041,1767904246615,-993.92526434,0.00017801,2]
[401073042,1767904246625,-25000.0,0.00017803,3]
[401073043,1767904246635,-150.0,0.00017808,2]
[401073045,1767904246644,-4109.4,0.00017808,2]
[401073047,1767904246654,-1000.0,0.0001781,2]
[401073049,1767904246663,-25000.0,0.00017812,3]
[401073050,1767904246672,-804.28976,0.0001782,2]
[401073051,1767904246682,-804.28976,0.0001782,2]
[401073052,1767904246693,-758.96088212,0.0001782,2]
[401073053,1767904246703,-25000.0,0.00017821,3]
[401073054,1767904246712,-914.48,0.00017822,2]
[401073055,1767904246722,-25000.0,0.0001783,3]
[401073056,1767904246732,-2563.74337966,0.0001783,2]
[401073057,1767904246742,-804.28977,0.0001783,2]
[401073058,1767904246752,-25000.0,0.00017838,3]
[401073059,1767904246762,-25000.0,0.00017847,3]
[401073060,1767904246771,-150.0,0.00017851,2]
[401073061,1767904246782,-2000.0,0.00017855,2]
[401073062,1767904246794,-200.0,0.00017855,2]
[401073063,1767904246804,-200.0,0.00017856,2]
[401073064,1767904246814,-25000.0,0.00017856,3]
[401073065,1767904246823,-2000.0,0.00017856,2]
[401073066,1767904246834,-200.0,0.00017856,2]
[401073067,1767904246843,-200.0,0.00017856,2]
[401073068,1767904246853,-1000.0,0.00017856,2]
[401073069,1767904246863,-150.0,0.0001786,2]
[401073070,1767904246872,-804.28976,0.0001786,2]
[401073071,1767904246882,-25000.0,0.00017865,3]
[401073072,1767904246892,-661.47,0.00017871,2]
[401073073,1767904246902,-661.47,0.00017871,2]
[401073074,1767904246912,-661.47,0.00017871,2]
[401073075,1767904246921,-661.47,0.00017871,2]
[401073076,1767904246931,-661.47,0.00017871,2]
[401073077,1767904246942,-1283.3,0.00017871,2]
[401073078,1767904246952,-25000.0,0.00017874,3]
[401073079,1767904246962,-804.28977,0.0001788,2]
[401073080,1767904246971,-25000.0,0.00017882,3]
[401073081,1767904246980,-1000.0,0.00017884,2]
[401073082,1767904246990,-1000.0,0.00017889,2]
[401073083,1767904247000,-150.0,0.00017891,2]
[401073084,1767904247009,-25000.0,0.00017891,3]
[401073085,1767904247019,-282.08498443,0.00017896,2]
[401073086,1767904247028,-458.86980404,0.00017896,2]
[401073087,1767904247038,-648.06111517,0.00017896,2]
[401073088,1767904247047,-847.04791815,0.00017896,2]
[401073089,1767904247057,-1000.0,0.00017896,2]
[401073090,1767904247066,-819.99,0.00017899,2]
[401073091,1767904247076,-577.6208976,0.00017899,2]
[401073092,1767904247085,-216.5318945,0.000179,2]
[401073093,1767904247094,-10000.0,0.000179,2]
[401073094,1767904247103,-25000.0,0.000179,3]
[401073095,1767904247113,-408.3664128,0.000179,2]
[401073096,1767904247122,-190.04272048,0.000179,3]
[401073097,1767904247131,-306.94008536,0.000179,2]
[401073098,1767904247141,-211.88264941,0.000179,2]
[401073099,1767904247150,-162.34815179,0.000179,2]
[401073100,1767904247160,-14840.0,0.000179,2]
[401073101,1767904247169,-1000.0,0.00017901,2]
[401073102,1767904247179,-1000.0,0.00017904,2]
[401073103,1767904247188,-804.28976,0.0001791,2]
[401073104,1767904247199,-927.0,0.0001791,2]
[401073105,1767904247208,-1000.0,0.00017926,2]
[401073106,1767904247217,-1000.0,0.00017936,2]
[401073107,1767904247227,-1000.0,0.0001794,2]
[401073108,1767904247236,-1000.0,0.00017944,2]
[401073109,1767904247246,-300.0,0.00017952,2]
[401073110,1767904247256,-1000.0,0.0001797,2]
[401073111,1767904247266,-500.0,0.0001797,2]
[401073112,1767904247275,-500.0,0.0001797,2]
[401073113,1767904247285,-1000.0,0.0001797,2]
[401073114,1767904247294,-500.0,0.0001797,2]
[401073115,1767904247304,-1000.0,0.0001797,2]
[401073116,1767904247314,-1000.0,0.0001797,2]
[401073117,1767904247324,-500.0,0.0001797,2]
[401073118,1767904247334,-500.0,0.0001797,2]
[401073119,1767904247344,-1000.0,0.0001797,2]
[401073120,1767904247354,-584.41347442,0.0001797,2]
[401073121,1767904247364,-1000.0,0.0001797,2]
[401073122,1767904247374,-1000.0,0.0001797,2]
[401073123,1767904247384,-1446.54474908,0.0001797,2]
[401073124,1767904247393,-8200.0,0.00017973,2]
[401073125,1767904247403,-500.0,0.00017973,2]
[401073126,1767904247412,-500.0,0.00017973,2]
[401073127,1767904247422,-500.0,0.00017973,2]
[401073128,1767904247432,-500.0,0.00017973,2]
[401073129,1767904247442,-500.0,0.00017973,2]
[401073130,1767904247453,-150.49880534,0.00017973,2]
[401073131,1767904247463,-500.0,0.00017973,2]
[401073132,1767904247472,-500.17178809,0.00017973,2]
[401073133,1767904247482,-426.73386812,0.00017973,2]
[401073134,1767904247492,-513.02244381,0.00017973,2]
[401073135,1767904247502,-504.24318867,0.00017973,2]
[401073136,1767904247511,-150.0,0.00017973,2]
[401073137,1767904247521,-568.48476984,0.00017973,2]
[401073138,1767904247531,-159.904,0.00017973,2]
[401073139,1767904247540,-160.89060159,0.00017973,2]
[401073140,1767904247550,-500.0,0.00017973,2]
[401073141,1767904247560,-500.0,0.00017973,2]
[401073142,1767904247569,-385.16009683,0.00017973,2]
[401073143,1767904247579,-500.0,0.00017973,2]
[401073144,1767904247589,-500.0,0.00017973,2]
[401073145,1767904247598,-160.81509317,0.00017973,2]
[401073146,1767904247608,-501.18870733,0.00017973,2]
[401073147,1767904247618,-504.45710441,0.00017973,2]
[401073148,1767904247627,-500.0,0.00017973,2]
[401073149,1767904247637,-500.0,0.00017973,2]
[401073150,1767904247647,-500.0,0.00017973,2]
[401073151,1767904247656,-500.0,0.00017973,2]
[401073152,1767904247666,-500.0,0.00017973,2]
[401073153,1767904247675,-150.0,0.00017973,2]
[401073154,1767904247685,-157.72323008,0.00017973,2]
[401073155,1767904247695,-2129.0,0.00017974,2]
[401073156,1767904247704,-500.0,0.00017989,2]
[401073157,1767904247714,-386.45682453,0.00017989,2]
[401073158,1767904247724,-150.0,0.0001799,2]
[401073159,1767904247734,-893.22555293,0.0001799,2]
[401073160,1767904247744,-893.22555293,0.0001799,2]
[401073161,1767904247754,-8856.3179006,0.00017994,2]
[401073162,1767904247764,-184.075643,0.00017994,2]
[401073163,1767904247773,-34619.4080627,0.00017994,2]
[401073164,1767904247783,-203648.6284925,0.00017994,2]
[401073165,1767904247796,-151.0,0.00017994,2]
[401073166,1767904247806,-167.184503,0.00017994,2]
[401073167,1767904247816,-55579.2192793,0.00017994,2]
[401073168,1767904247825,-151.0,0.00017994,2]
[401073169,1767904247834,-970.5421603,0.00017994,2]
[401073170,1767904247843,-2025.729152,0.00017994,2]
[401073171,1767904247853,-151.0,0.00017994,2]
[401073172,1767904247862,-151.0,0.00017994,2]
[401073173,1767904247872,-151.0,0.00017994,2]
[401073174,1767904247882,-233.29795827,0.00017999,2]
[401073175,1767904247891,-150.0,0.00017999,2]
[401073176,1767904247901,-11518.53087648,0.00017999,2]
[401073177,1767904247911,-300.0,0.00017999,2]
[401073178,1767904247920,-500.0,0.00017999,2]
[401073179,1767904247931,-500.0,0.00017999,2]
[401073180,1767904247940,-500.0,0.00017999,2]
[401073181,1767904247950,-500.0,0.00017999,2]
[401073182,1767904247961,-500.0,0.00017999,2]
[401073183,1767904247971,-500.0,0.00017999,2]
[401073184,1767904247981,-500.0,0.00017999,2]
[401073185,1767904247991,-500.0,0.00017999,2]
[401073186,1767904248001,-500.0,0.00017999,2]
[401073187,1767904248011,-500.0,0.00017999,2]
[401073188,1767904248021,-500.0,0.00017999,2]
[401073189,1767904248031,-500.0,0.00017999,2]
[401073190,1767904248040,-500.0,0.00017999,2]
[401073191,1767904248050,-459.26722753,0.00017999,2]
[401073192,1767904248061,-542.95517596,0.00017999,2]
[401073193,1767904248071,-500.0,0.00017999,2]
[401073194,1767904248081,-500.0,0.00017999,2]
[401073195,1767904248090,-500.0,0.00017999,2]
[401073196,1767904248099,-500.0,0.00017999,2]
[401073197,1767904248109,-500.0,0.00017999,2]
[401073198,1767904248118,-500.0,0.00017999,2]
[401073199,1767904248127,-500.0,0.00017999,2]
[401073200,1767904248136,-500.0,0.00017999,2]
[401073201,1767904248147,-564.92009029,0.00017999,2]
[401073202,1767904248157,-303.86088657,0.00017999,2]
[401073203,1767904248166,-300.0,0.00017999,2]
[401073204,1767904248175,-300.0,0.00017999,2]
[401073205,1767904248185,-666.0,0.00017999,2]
[401073206,1767904248194,-568.35,0.00017999,2]
[401073207,1767904248203,-568.35,0.00017999,2]
[401073208,1767904248212,-568.35,0.00017999,2]
[401073209,1767904248221,-568.35,0.00017999,2]
[401073210,1767904248230,-568.35,0.00017999,2]
[401073211,1767904248240,-568.35,0.00017999,2]
[401073212,1767904248250,-568.35,0.00017999,2]
[401073213,1767904248260,-568.35,0.00017999,2]
[401073214,1767904248269,-568.35,0.00017999,2]
[401073215,1767904248278,-568.35,0.00017999,2]
[401073216,1767904248287,-568.35,0.00017999,2]
[401073217,1767904248296,-568.35,0.00017999,2]
[401073218,1767904248306,-568.35,0.00017999,2]
[401073219,1767904248315,-568.35,0.00017999,2]
[401073220,1767904248324,-568.35,0.00017999,2]
[401073221,1767904248334,-568.35,0.00017999,2]
[401073222,1767904248343,-568.4013734,0.00017999,2]
[401073223,1767904248352,-819.99,0.00017999,2]
[401073224,1767904248362,-819.99,0.00017999,2]
[401073225,1767904248371,-819.99,0.00017999,2]
[401073226,1767904248380,-819.99,0.00017999,2]
[401073227,1767904248389,-819.99,0.00017999,2]
[401073228,1767904248398,-819.99,0.00017999,2]
[401073229,1767904248407,-819.99,0.00017999,2]
[401073230,1767904248417,-819.99,0.00017999,2]
[401073231,1767904248426,-819.99,0.00017999,2]
[401073232,1767904248436,-819.99,0.00017999,2]
[401073233,1767904248445,-819.99,0.00017999,2]
[401073234,1767904248455,-819.99,0.00017999,2]
[401073235,1767904248465,-820.2277512,0.00017999,2]
[401073236,1767904248474,-300.0,0.00017999,2]
[401073237,1767904248483,-300.0,0.00017999,2]
[401073238,1767904248492,-666.0,0.00017999,2]
[401073239,1767904248502,-300.0,0.00017999,2]
[401073240,1767904248511,-666.0,0.00017999,2]
[401073241,1767904248521,-300.0,0.00017999,2]
[401073242,1767904248531,-1214.22810272,0.00017999,2]
[401073243,1767904248540,-300.0,0.00017999,2]
[401073244,1767904248550,-666.0,0.00017999,2]
[401073245,1767904248560,-5970.77362135,0.00017999,2]
[401073246,1767904248569,-168.0,0.00018,2]
[401073247,1767904248579,-1000.0,0.00018,2]
[401073248,1767904248588,-836.47750939,0.00018,2]
[401073249,1767904248597,-1071323.31401343,0.00018,2]
[401073250,1767904248606,-1188.17087136,0.00018,2]
[401073251,1767904248616,-177.0,0.00018,2]
[401073252,1767904248625,-1185.61,0.00018,7]
[401073253,1767904248635,-382.30206586,0.00018,2]
[401073254,1767904248645,-341.54,0.00018,2]
[401073255,1767904248654,-2720759.07397944,0.00018,2]
[401073256,1767904249295,-9006.5371147,0.00018,2]
[401073257,1767904249324,-1279.2779985,0.00018,2]
[401073258,1767904249336,-265.1286,0.00018,2]
[401073259,1767904249351,-1723.07381486,0.00018,2]
[401073260,1767904249435,-324.7149346,0.00018,2]
[401073261,1767904252544,-4382.0962424,0.000179,2]
[401073262,1767904252554,-5996.9037576,0.000179,2]
[401073269,1767905431349,-300.0,0.00011375,2]
[401073270,1767905431359,-1200.0,0.00011375,2]
[401073271,1767905431368,-500.0,0.00011376,2]
[401073272,1767905431377,-238.41975202,0.00011376,2]
[401073273,1767905431389,-261.58024798,0.00011376,2]
[401073274,1767905431399,-318.05034027,0.00011376,2]
[401073275,1767905431408,-500.0,0.00011376,2]
[401073276,1767905431418,-500.0,0.00011376,2]
[401073277,1767905431427,-500.0,0.00011376,2]
[401073278,1767905431436,-500.0,0.00011376,2]
[401073279,1767905431445,-500.0,0.00011376,2]
[401073280,1767905431455,-500.0,0.00011376,2]
[401073281,1767905431464,-500.0,0.00011376,2]
[401073282,1767905431473,-500.0,0.00011376,2]
[401073283,1767905431482,-500.0,0.00011376,2]
[401073284,1767905431491,-500.0,0.00011376,2]
[401073285,1767905431500,-500.0,0.00011376,2]
[401073286,1767905431509,-500.0,0.00011376,2]
[401073287,1767905431517,-500.0,0.00011376,2]
[401073288,1767905431527,-500.0,0.00011376,2]
[401073289,1767905431536,-500.0,0.00011376,2]
[401073290,1767905431545,-500.0,0.00011376,2]
[401073291,1767905431554,-500.0,0.00011376,2]
[401073292,1767905431563,-500.0,0.00011376,2]
[401073293,1767905431572,-500.0,0.00011376,2]
[401073294,1767905431581,-500.0,0.00011376,2]
[401073295,1767905431590,-500.0,0.00011376,2]
[401073297,1767905431599,-500.0,0.00011376,2]
[401073299,1767905431608,-500.0,0.00011376,2]
[401073301,1767905431617,-500.0,0.00011376,2]
[401073302,1767905431627,-500.0,0.00011376,2]
[401073304,1767905431637,-500.0,0.00011376,2]
[401073306,1767905431646,-500.0,0.00011376,2]
[401073308,1767905431655,-500.0,0.00011376,2]
[401073310,1767905431664,-500.0,0.00011376,2]
[401073313,1767905431674,-500.0,0.00011376,2]
[401073316,1767905431683,-500.0,0.00011376,2]
[401073318,1767905431691,-500.0,0.00011376,2]
[401073320,1767905431701,-373.3063097,0.00011376,2]
[401073323,1767905431710,-500.0,0.00011376,2]
[401073326,1767905431718,-500.0,0.00011376,2]
[401073329,1767905431728,-500.0,0.00011376,2]
[401073330,1767905431736,-500.0,0.00011376,2]
[401073331,1767905431746,-500.0,0.00011376,2]
[401073332,1767905431756,-500.0,0.00011376,2]
[401073333,1767905431765,-500.0,0.00011376,2]
[401073334,1767905431774,-500.0,0.00011376,2]
[401073335,1767905431783,-500.0,0.00011376,2]
[401073336,1767905431793,-500.0,0.00011376,2]
[401073337,1767905431803,-500.0,0.00011376,2]
[401073338,1767905431812,-500.0,0.00011376,2]
[401073339,1767905431821,-500.0,0.00011376,2]
[401073340,1767905431831,-500.0,0.00011376,2]
[401073341,1767905431840,-500.0,0.00011376,2]
[401073342,1767905431849,-500.0,0.00011376,2]
[401073343,1767905431858,-500.0,0.00011376,2]
[401073344,1767905431867,-500.0,0.00011376,2]
[401073345,1767905431877,-500.0,0.00011376,2]
[401073346,1767905431887,-500.0,0.00011376,2]
[401073347,1767905431897,-500.0,0.00011376,2]
[401073348,1767905431906,-500.0,0.00011376,2]
[401073349,1767905431915,-500.0,0.00011376,2]
[401073350,1767905431925,-500.0,0.00011376,2]
[401073351,1767905431934,-500.0,0.00011376,2]
[401073352,1767905431944,-500.0,0.00011376,2]
[401073353,1767905431953,-486.24530624,0.00011376,2]
[401073354,1767905431962,-500.0,0.00011376,2]
[401073355,1767905431971,-500.0,0.00011376,2]
[401073356,1767905431981,-500.0,0.00011376,2]
[401073357,1767905431990,-500.0,0.00011376,2]
[401073358,1767905431999,-500.0,0.00011376,2]
[401073359,1767905432008,-500.0,0.00011376,2]
[401073360,1767905432018,-500.0,0.00011376,2]
[401073361,1767905432027,-500.0,0.00011376,2]
[401073362,1767905432037,-500.0,0.00011376,2]
[401073363,1767905432048,-500.0,0.00011376,2]
[401073364,1767905432058,-500.0,0.00011376,2]
[401073365,1767905432068,-500.0,0.00011376,2]
[401073366,1767905432078,-500.0,0.00011376,2]
[401073367,1767905432088,-500.0,0.00011376,2]
[401073368,1767905432103,-500.0,0.00011376,2]
[401073369,1767905432112,-500.0,0.00011376,2]
[401073370,1767905432121,-318.05034027,0.00011376,2]
[401073371,1767905432130,-500.0,0.00011376,2]
[401073372,1767905432139,-318.05034027,0.00011376,2]
[401073373,1767905432148,-500.0,0.00011376,2]
[401073374,1767905432157,-6169.77491729,0.00011377,2]
[401073375,1767905432623,-7517.48012438,0.00011377,2]
[401073376,1767905432635,-3556.73820163,0.00011377,2]
[401073377,1767905432644,-4976.57108637,0.00011377,2]
[401073378,1767905432653,-162.34815179,0.00011377,2]
[401073379,1767905432663,-162.34815179,0.00011377,2]
[401073380,1767905432672,-195.0,0.00011425,2]
[401073381,1767905432681,-150.0,0.00011472,2]
[401073382,1767905432691,-153.94967675,0.00011475,2]
[401073383,1767905432700,-158.61530651,0.00011475,2]
[401073384,1767905432710,-501.33517508,0.00011475,2]
[401073385,1767905432720,-7748.13265624,0.00011477,2]
[401073386,1767905432743,-3528.14577167,0.00011477,2]
[401073387,1767905432754,-2535.48197541,0.00011477,2]
[401073388,1767905432765,-5164.09646268,0.00011477,2]
[401073389,1767905432780,-345.51780687,0.00011477,2]
[401073390,1767905432791,-532.82685681,0.00011477,2]
[401073391,1767905432822,-2700.0,0.00011477,2]
[401073392,1767905432833,-59133.10528601,0.00011477,2]
[401073393,1767905432848,-4625.7895929,0.00011477,2]
[401073394,1767905432859,-17928.20434179,0.00011477,2]
[401073408,1767905437866,-85952.08024132,0.00011477,2]
[401073410,1767905437877,-539.93551002,0.00011477,2]
[401073421,1767905437986,-951.47124054,0.00011477,2]
[401073575,1767905439798,-808315.21225774,0.00011477,2]
[401073577,1767905439808,-1000.0,0.00011577,2]
[401073579,1767905439817,-17243.99324327,0.00012102,2]
[401073581,1767905439826,-4976.57108636,0.00012102,2]
[401073583,1767905439834,-9999.99,0.00012188,2]
[401073584,1767905439843,-9999.99,0.00012188,2]
[401073586,1767905439852,-150.99,0.00012188,2]
[401073589,1767905439861,-420.0,0.00012495,2]
[401073591,1767905439871,-1680.0,0.00012513,2]
[401073592,1767905439880,-195.0,0.00012515,2]
[401073595,1767905439890,-255.0,0.00012539,2]
[401073596,1767905439899,-17243.99324327,0.00012827,2]
[401073599,1767905439908,-4976.57108636,0.00012827,2]
[401073601,1767905439918,-17243.99324327,0.00013551,2]
[401073603,1767905439927,-4976.57108636,0.00013551,2]
[401073605,1767905439936,-500.0,0.00013698,2]
[401073607,1767905439945,-500.0,0.00013698,2]
[401073609,1767905439955,-500.0,0.00013698,2]
[401073610,1767905439964,-500.0,0.00013698,2]
[401073612,1767905439973,-500.0,0.00013698,2]
[401073615,1767905439984,-386.45682453,0.00013698,2]
[401073616,1767905440001,-500.0,0.00013698,2]
[401073619,1767905440019,-500.0,0.00013698,2]
[401073620,1767905440029,-500.0,0.00013698,2]
[401073623,1767905440040,-500.0,0.00013698,2]
[401073625,1767905440049,-500.0,0.00013698,2]
[401073628,1767905440059,-500.0,0.00013698,2]
[401073630,1767905440070,-500.0,0.00013698,2]
[401073633,1767905440080,-500.0,0.00013698,2]
[401073636,1767905440092,-433.0,0.00013709,2]
[401073639,1767905440103,-587.0,0.00013726,2]
[401073641,1767905440112,-2351.0,0.00013764,2]
[401073643,1767905440121,-500.0,0.00013999,2]
[401073645,1767905440130,-893.22555293,0.00014266,2]
[401073647,1767905440139,-17243.99324327,0.00014276,2]
[401073649,1767905440148,-4976.57108636,0.00014276,2]
[401073651,1767905440158,-152.0,0.00014473,2]
[401073653,1767905440168,-152.0,0.00014473,2]
[401073655,1767905440177,-152.0,0.00014473,2]
[401073657,1767905440192,-152.0,0.00014473,2]
[401073659,1767905440213,-152.0,0.00014529,2]
[401073661,1767905440230,-152.0,0.00014529,2]
[401073663,1767905440241,-500.0,0.00014571,2]
[401073665,1767905440251,-162.34815179,0.00014639,2]
[401073667,1767905440261,-500.0,0.00014763,2]
[401073669,1767905440272,-520.5636209,0.00014763,2]
[401073671,1767905440281,-500.0,0.00014763,2]
[401073673,1767905440293,-500.0,0.00014763,2]
[401073675,1767905440303,-1000.0,0.00014901,2]
[401073677,1767905440314,-736.0,0.00014982,2]
[401073678,1767905440325,-17243.99324327,0.00015001,2]
[401073680,1767905440335,-4976.57108636,0.00015001,2]
[401073682,1767905440346,-250.0,0.0001503,2]
[401073685,1767905440356,-823.0,0.00015077,2]
[401073687,1767905440367,-3292.0,0.0001514,2]
[401073689,1767905440376,-2660.29,0.00015252,2]
[401073691,1767905440386,-1000.0,0.0001531,2]
[401073693,1767905440397,-1000.0,0.0001531,2]
[401073695,1767905440409,-1000.0,0.0001531,2]
[401073697,1767905440418,-151.0,0.00015318,2]
[401073699,1767905440427,-151.0,0.00015318,2]
[401073701,1767905440439,-166.66,0.00015395,2]
[401073703,1767905440450,-1000.0,0.00015436,2]
[401073705,1767905440461,-166.66,0.00015719,2]
[401073707,1767905440471,-17243.99324327,0.00015726,2]
[401073709,1767905440483,-4976.57108636,0.00015726,2]
[401073711,1767905440493,-1000.0,0.0001573,2]
[401073713,1767905440503,-1500.0,0.00015858,2]
[401073715,1767905440512,-1500.0,0.00015858,2]
[401073716,1767905440522,-1500.0,0.00015858,2]
[401073718,1767905440531,-500.0,0.00015999,2]
[401073721,1767905440541,-166.66,0.00016043,2]
[401073722,1767905440550,-1000.0,0.00016097,2]
[401073725,1767905440559,-500.0,0.00016099,2]
[401073727,1767905440568,-500.0,0.00016115,2]
[401073729,1767905440577,-9999.99,0.00016116,2]
[401073731,1767905440589,-150.0,0.00016164,2]
[401073733,1767905440600,-153.65010095,0.00016164,2]
[401073735,1767905440609,-500.0,0.00016164,2]
[401073737,1767905440618,-150.0,0.00016164,2]
[401073739,1767905440627,-150.0,0.00016164,2]
[401073741,1767905440636,-500.0,0.00016164,2]
[401073743,1767905440645,-224.78328857,0.00016164,2]
[401073745,1767905440654,-2293.0,0.00016164,2]
[401073747,1767905440664,-500.0,0.00016164,2]
[401073749,1767905440675,-500.0,0.00016164,2]
[401073751,1767905440684,-157.03274317,0.00016164,2]
[401073753,1767905440694,-171.05172936,0.00016164,2]
[401073755,1767905440703,-150.0,0.00016205,2]
[401073757,1767905440712,-150.0,0.00016219,2]
[401073759,1767905440722,-500.0,0.00016219,2]
[401073761,1767905440732,-250.0,0.00016219,2]
[401073763,1767905440742,-500.0,0.00016219,2]
[401073765,1767905440751,-2293.0,0.00016219,2]
[401073767,1767905440760,-500.0,0.00016219,2]
[401073769,1767905440769,-500.0,0.00016219,2]
[401073771,1767905440778,-150.0,0.00016274,2]
[401073773,1767905440787,-500.0,0.00016274,2]
[401073775,1767905440796,-500.0,0.00016274,2]
[401073777,1767905440805,-2293.0,0.00016274,2]
[401073779,1767905440815,-500.0,0.00016274,2]
[401073781,1767905440824,-500.0,0.00016274,2]
[401073783,1767905440833,-157.72323008,0.00016308,2]
[401073785,1767905440842,-150.0,0.00016328,2]
[401073787,1767905440851,-500.0,0.00016328,2]
[401073789,1767905440860,-500.0,0.00016328,2]
[401073791,1767905440869,-2293.0,0.00016328,2]
[401073793,1767905440878,-500.0,0.00016328,2]
[401073795,1767905440888,-500.0,0.00016328,2]
[401073797,1767905440898,-166.66,0.00016367,2]
[401073799,1767905440907,-1252.0,0.00016371,2]
[401073802,1767905440917,-329.57,0.0001638,2]